fUST/lending_fUST_20260620
["ID","MTS","AMOUNT","RATE_DAILY","PERIOD"]
[425829359,1781952641000,-500.0,0.0001726,2]
[425829368,1781952641000,-12733.62,0.0001726,2]
[425829364,1781952641000,-732.5,0.0001726,2]
[425829360,1781952641000,-1631.12,0.0001726,2]
[425829365,1781952641000,-2169.36,0.0001726,2]
[425829369,1781952641000,-500.0,0.0001726,2]
[425829361,1781952641000,-500.0,0.0001726,2]
[425829371,1781952641000,-1956.19,0.0001726,2]
[425829367,1781952641000,-500.0,0.0001726,2]
[425829370,1781952641000,-500.0,0.0001726,2]
[425829366,1781952641000,-501.47773862,0.0001726,2]
[425829363,1781952641000,-512.05,0.0001726,2]
[425829438,1781952642000,-500.0,0.00017534,2]
[425829429,1781952642000,-500.0,0.00017534,2]
[425829437,1781952642000,-995.8,0.00017534,2]
[425829441,1781952642000,-500.0,0.00017534,2]
[425829442,1781952642000,-729.21,0.00017534,2]
[425829439,1781952642000,-500.0,0.00017534,2]
[425829424,1781952642000,-500.0,0.00017534,2]
[425829427,1781952642000,-500.0,0.00017534,2]
[425829430,1781952642000,-1242.33,0.00017534,2]
[425829426,1781952642000,-1956.19,0.00017534,2]
[425829436,1781952642000,-500.0,0.00017534,2]
[425829435,1781952642000,-500.0,0.00017534,2]
[425829440,1781952642000,-724.61,0.00017534,2]
[425829451,1781952642000,-575.28,0.00017534,2]
[425829445,1781952642000,-534.89,0.00017534,2]
[425829443,1781952642000,-506.58,0.00017534,2]
[425829446,1781952642000,-1225.39,0.00017534,2]
[425829447,1781952642000,-500.0,0.00017534,2]
[425829459,1781952642000,-500.0,0.00017808,2]
[425829449,1781952642000,-555.44,0.00017534,2]
[425829448,1781952642000,-500.0,0.00017534,2]
[425829450,1781952642000,-1721.56,0.00017534,2]
[425829452,1781952642000,-151.0,0.000176,2]
[425829453,1781952642000,-151.0,0.000177,2]
[425829454,1781952642000,-2279.3492434,0.00017781,2]
[425829455,1781952642000,-500.0,0.00017808,2]
[425829428,1781952642000,-614.52,0.00017534,2]
[425829444,1781952642000,-1000.0,0.00017534,2]
[425829422,1781952642000,-500.0,0.00017534,2]
[425829404,1781952642000,-500.0,0.00017534,2]
[425829433,1781952642000,-678.12,0.00017534,2]
[425829398,1781952642000,-163.32736517,0.000174,2]
[425829397,1781952642000,-540.413614,0.0001726,2]
[425829400,1781952642000,-163.32736515,0.000174,2]
[425829399,1781952642000,-163.32736515,0.000174,2]
[425829401,1781952642000,-500.0,0.00017534,2]
[425829402,1781952642000,-500.0,0.00017534,2]
[425829457,1781952642000,-500.0,0.00017808,2]
[425829407,1781952642000,-1018.83,0.00017534,2]
[425829405,1781952642000,-500.0,0.00017534,2]
[425829403,1781952642000,-500.0,0.00017534,2]
[425829406,1781952642000,-500.0,0.00017534,2]
[425829419,1781952642000,-512.05,0.00017534,2]
[425829420,1781952642000,-732.5,0.00017534,2]
[425829425,1781952642000,-500.0,0.00017534,2]
[425829410,1781952642000,-500.0,0.00017534,2]
[425829408,1781952642000,-1230.34,0.00017534,2]
[425829411,1781952642000,-683.7,0.00017534,2]
[425829421,1781952642000,-2169.36,0.00017534,2]
[425829418,1781952642000,-500.0,0.00017534,2]
[425829412,1781952642000,-500.0,0.00017534,2]
[425829414,1781952642000,-500.0,0.00017534,2]
[425829415,1781952642000,-500.0,0.00017534,2]
[425829413,1781952642000,-500.0,0.00017534,2]
[425829417,1781952642000,-500.0,0.00017534,2]
[425829423,1781952642000,-12733.62,0.00017534,2]
[425829432,1781952642000,-1099.9,0.00017534,2]
[425829431,1781952642000,-758.33,0.00017534,2]
[425829434,1781952642000,-1177.66,0.00017534,2]
[425829409,1781952642000,-500.0,0.00017534,2]
[425829458,1781952642000,-500.0,0.00017808,2]
[425829416,1781952642000,-1631.12,0.00017534,2]
[425829460,1781952642000,-500.0,0.00017808,2]
[425829487,1781952642000,-678.12,0.00017808,2]
[425829494,1781952642000,-724.61,0.00017808,2]
[425829493,1781952642000,-500.0,0.00017808,2]
[425829495,1781952642000,-500.0,0.00017808,2]
[425829496,1781952642000,-729.21,0.00017808,2]
[425829499,1781952642000,-534.89,0.00017808,2]
[425829509,1781952642000,-500.0,0.00018082,2]
[425829498,1781952642000,-1000.0,0.00017808,2]
[425829500,1781952642000,-1225.39,0.00017808,2]
[425829501,1781952642000,-500.0,0.00017808,2]
[425829502,1781952642000,-500.0,0.00017808,2]
[425829503,1781952642000,-555.44,0.00017808,2]
[425829507,1781952642000,-369.50918977,0.00018,2]
[425829492,1781952642000,-379.73595436,0.00017808,2]
[425829504,1781952642000,-1721.56,0.00017808,2]
[425829508,1781952642000,-500.0,0.00018082,2]
[425829510,1781952642000,-500.0,0.00018082,2]
[425829511,1781952642000,-500.0,0.00018082,2]
[425829515,1781952642000,-1230.34,0.00018082,2]
[425829514,1781952642000,-1018.83,0.00018082,2]
[425829516,1781952642000,-500.0,0.00018082,2]
[425829512,1781952642000,-500.0,0.00018082,2]
[425829513,1781952642000,-500.0,0.00018082,2]
[425829517,1781952642000,-683.7,0.00018082,2]
[425829519,1781952642000,-511.38346364,0.00018082,2]
[425829520,1781952642000,-500.0,0.00018082,2]
[425829518,1781952642000,-500.0,0.00018082,2]
[425829456,1781952642000,-500.0,0.00017808,2]
[425829505,1781952642000,-575.28,0.00017808,2]
[425829497,1781952642000,-506.58,0.00017808,2]
[425829506,1781952642000,-158.29,0.00017808,2]
[425829489,1781952642000,-500.0,0.00017808,2]
[425829491,1781952642000,-995.8,0.00017808,2]
[425829462,1781952642000,-1230.34,0.00017808,2]
[425829463,1781952642000,-500.0,0.00017808,2]
[425829464,1781952642000,-502.12801059,0.00017808,2]
[425829461,1781952642000,-1018.83,0.00017808,2]
[425829465,1781952642000,-683.7,0.00017808,2]
[425829469,1781952642000,-420.75426335,0.00017808,2]
[425829471,1781952642000,-500.0,0.00017808,2]
[425829466,1781952642000,-500.0,0.00017808,2]
[425829472,1781952642000,-500.0,0.00017808,2]
[425829468,1781952642000,-500.0,0.00017808,2]
[425829467,1781952642000,-500.0,0.00017808,2]
[425829473,1781952642000,-512.05,0.00017808,2]
[425829484,1781952642000,-1242.33,0.00017808,2]
[425829470,1781952642000,-1631.12,0.00017808,2]
[425829480,1781952642000,-1956.19,0.00017808,2]
[425829485,1781952642000,-758.33,0.00017808,2]
[425829475,1781952642000,-2169.36,0.00017808,2]
[425829476,1781952642000,-500.0,0.00017808,2]
[425829478,1781952642000,-500.0,0.00017808,2]
[425829481,1781952642000,-500.0,0.00017808,2]
[425829479,1781952642000,-500.0,0.00017808,2]
[425829477,1781952642000,-12733.62,0.00017808,2]
[425829482,1781952642000,-614.52,0.00017808,2]
[425829483,1781952642000,-500.0,0.00017808,2]
[425829486,1781952642000,-1099.9,0.00017808,2]
[425829488,1781952642000,-1177.66,0.00017808,2]
[425829474,1781952642000,-732.5,0.00017808,2]
[425829490,1781952642000,-500.0,0.00017808,2]
[425829542,1781952643000,-995.8,0.00018082,2]
[425829545,1781952643000,-500.0,0.00018082,2]
[425829555,1781952643000,-1721.56,0.00018082,2]
[425829541,1781952643000,-500.0,0.00018082,2]
[425829546,1781952643000,-729.21,0.00018082,2]
[425829540,1781952643000,-500.0,0.00018082,2]
[425829544,1781952643000,-724.61,0.00018082,2]
[425829551,1781952643000,-1073.00966751,0.00018082,2]
[425829550,1781952643000,-152.38033249,0.00018082,2]
[425829549,1781952643000,-534.89,0.00018082,2]
[425829548,1781952643000,-1000.0,0.00018082,2]
[425829553,1781952643000,-244.40342872,0.00018082,2]
[425829556,1781952643000,-575.28,0.00018082,2]
[425829536,1781952643000,-758.33,0.00018082,2]
[425829547,1781952643000,-506.58,0.00018082,2]
[425829543,1781952643000,-500.0,0.00018082,2]
[425829531,1781952643000,-1956.19,0.00018082,2]
[425829538,1781952643000,-678.12,0.00018082,2]
[425829554,1781952643000,-555.44,0.00018082,2]
[425829521,1781952643000,-1631.12,0.00018082,2]
[425829522,1781952643000,-500.0,0.00018082,2]
[425829532,1781952643000,-500.0,0.00018082,2]
[425829523,1781952643000,-500.0,0.00018082,2]
[425829533,1781952643000,-614.52,0.00018082,2]
[425829524,1781952643000,-512.05,0.00018082,2]
[425829539,1781952643000,-1177.66,0.00018082,2]
[425829530,1781952643000,-500.0,0.00018082,2]
[425829529,1781952643000,-500.0,0.00018082,2]
[425829528,1781952643000,-12733.62,0.00018082,2]
[425829526,1781952643000,-2169.36,0.00018082,2]
[425829527,1781952643000,-500.0,0.00018082,2]
[425829525,1781952643000,-732.5,0.00018082,2]
[425829535,1781952643000,-1242.33,0.00018082,2]
[425829537,1781952643000,-1099.9,0.00018082,2]
[425829534,1781952643000,-500.0,0.00018082,2]
[425829552,1781952643000,-500.0,0.00018082,2]
[425829563,1781952643000,-152.38722093,0.00018356,2]
[425829558,1781952643000,-369.50918977,0.000182,2]
[425829580,1781952643000,-500.0,0.00018356,2]
[425829578,1781952643000,-683.7,0.00018356,2]
[425829582,1781952643000,-500.0,0.00018356,2]
[425829584,1781952643000,-512.05,0.00018356,2]
[425829574,1781952643000,-500.0,0.00018356,2]
[425829585,1781952643000,-732.5,0.00018356,2]
[425829586,1781952643000,-2169.36,0.00018356,2]
[425829591,1781952643000,-1956.19,0.00018356,2]
[425829589,1781952643000,-500.0,0.00018356,2]
[425829587,1781952643000,-499.16825042,0.00018356,2]
[425829588,1781952643000,-12733.62,0.00018356,2]
[425829594,1781952643000,-500.0,0.00018356,2]
[425829592,1781952643000,-500.0,0.00018356,2]
[425829590,1781952643000,-500.0,0.00018356,2]
[425829559,1781952643000,-151.0,0.000183,2]
[425829577,1781952643000,-500.0,0.00018356,2]
[425829573,1781952643000,-198.62195694,0.00018356,2]
[425829593,1781952643000,-614.52,0.00018356,2]
[425829575,1781952643000,-1018.83,0.00018356,2]
[425829557,1781952643000,-1438.68480796,0.0001813,2]
[425829572,1781952643000,-500.0,0.00018356,2]
[425829562,1781952643000,-500.0,0.00018356,2]
[425829560,1781952643000,-464.90917535,0.00018354,2]
[425829561,1781952643000,-500.0,0.00018356,2]
[425829568,1781952643000,-1267.47,0.00017534,2]
[425829567,1781952643000,-1267.47,0.0001726,2]
[425829566,1781952643000,-1267.47,0.00016986,2]
[425829564,1781952643000,-1267.47,0.00016438,2]
[425829565,1781952643000,-1267.47,0.00016712,2]
[425829569,1781952643000,-1267.47,0.00017808,2]
[425829571,1781952643000,-347.61277907,0.00018356,2]
[425829583,1781952643000,-500.0,0.00018356,2]
[425829576,1781952643000,-1230.34,0.00018356,2]
[425829570,1781952643000,-1267.47,0.00018082,2]
[425829579,1781952643000,-500.0,0.00018356,2]
[425829581,1781952643000,-1631.12,0.00018356,2]
[425829618,1781952644000,-369.50918977,0.000185,2]
[425829628,1781952644000,-500.0,0.0001863,2]
[425829626,1781952644000,-1018.83,0.0001863,2]
[425829625,1781952644000,-500.0,0.0001863,2]
[425829635,1781952644000,-512.05,0.0001863,2]
[425829624,1781952644000,-500.0,0.0001863,2]
[425829623,1781952644000,-500.0,0.0001863,2]
[425829633,1781952644000,-204.25198688,0.0001863,2]
[425829634,1781952644000,-500.0,0.0001863,2]
[425829627,1781952644000,-1230.34,0.0001863,2]
[425829638,1781952644000,-12733.62,0.0001863,2]
[425829632,1781952644000,-1631.12,0.0001863,2]
[425829642,1781952644000,-500.0,0.0001863,2]
[425829630,1781952644000,-500.0,0.0001863,2]
[425829636,1781952644000,-732.5,0.0001863,2]
[425829639,1781952644000,-500.0,0.0001863,2]
[425829637,1781952644000,-2169.36,0.0001863,2]
[425829640,1781952644000,-500.0,0.0001863,2]
[425829644,1781952644000,-500.0,0.0001863,2]
[425829641,1781952644000,-1956.19,0.0001863,2]
[425829621,1781952644000,-500.0,0.0001863,2]
[425829629,1781952644000,-683.7,0.0001863,2]
[425829619,1781952644000,-4326.9123467,0.00018545,2]
[425829607,1781952644000,-506.58,0.00018356,2]
[425829622,1781952644000,-410.08026762,0.0001863,2]
[425829595,1781952644000,-1242.33,0.00018356,2]
[425829596,1781952644000,-758.33,0.00018356,2]
[425829598,1781952644000,-678.12,0.00018356,2]
[425829608,1781952644000,-1000.0,0.00018356,2]
[425829610,1781952644000,-1225.39,0.00018356,2]
[425829609,1781952644000,-534.89,0.00018356,2]
[425829597,1781952644000,-1099.9,0.00018356,2]
[425829600,1781952644000,-500.0,0.00018356,2]
[425829599,1781952644000,-1177.66,0.00018356,2]
[425829601,1781952644000,-500.0,0.00018356,2]
[425829620,1781952644000,-1694.3216706,0.00018545,2]
[425829603,1781952644000,-500.0,0.00018356,2]
[425829604,1781952644000,-724.61,0.00018356,2]
[425829602,1781952644000,-995.8,0.00018356,2]
[425829606,1781952644000,-729.21,0.00018356,2]
[425829611,1781952644000,-500.0,0.00018356,2]
[425829612,1781952644000,-555.44,0.00018356,2]
[425829613,1781952644000,-1721.56,0.00018356,2]
[425829616,1781952644000,-369.50918977,0.000184,2]
[425829614,1781952644000,-575.28,0.00018356,2]
[425829617,1781952644000,-151.0,0.000184,2]
[425829615,1781952644000,-1267.47,0.00018356,2]
[425829605,1781952644000,-500.0,0.00018356,2]
[425829643,1781952644000,-614.52,0.0001863,2]
[425829631,1781952644000,-500.0,0.0001863,2]
[425829645,1781952644000,-1242.33,0.0001863,2]
[425829673,1781952644000,-613.73312305,0.00018878,2]
[425829675,1781952644000,-1267.47,0.0001863,2]
[425829676,1781952644000,-96.11735206,0.00018878,2]
[425829679,1781952644000,-174.21216675,0.00018878,2]
[425829678,1781952644000,-1535.89107257,0.00018878,2]
[425829680,1781952644000,-160.16688106,0.00018878,2]
[425829681,1781952644000,-1134.5207141,0.00018878,2]
[425829682,1781952644000,-343.94768563,0.00018878,2]
[425829677,1781952644000,-160.07621049,0.00018878,2]
[425829684,1781952644000,-160.21038039,0.00018878,2]
[425829672,1781952644000,-155.42244538,0.00018873,2]
[425829685,1781952644000,-805.89914975,0.00018878,2]
[425829686,1781952644000,-172.68251514,0.00018878,2]
[425829688,1781952644000,-152.42074003,0.00018878,2]
[425829690,1781952644000,-169.98641422,0.00018878,2]
[425829691,1781952644000,-164.8467677,0.00018878,2]
[425829694,1781952644000,-155.21430475,0.00018878,2]
[425829693,1781952644000,-160.13514479,0.00018878,2]
[425829689,1781952644000,-182.21943261,0.00018878,2]
[425829692,1781952644000,-325.52634585,0.00018878,2]
[425829695,1781952644000,-168.68756418,0.00018878,2]
[425829647,1781952644000,-1099.9,0.0001863,2]
[425829687,1781952644000,-374.97051724,0.00018878,2]
[425829674,1781952644000,-78.28463676,0.00018878,2]
[425829683,1781952644000,-195.63013677,0.00018878,2]
[425829668,1781952644000,-160.0,0.00018806,2]
[425829671,1781952644000,-161.69502965,0.00018873,2]
[425829646,1781952644000,-758.33,0.0001863,2]
[425829649,1781952644000,-1177.66,0.0001863,2]
[425829659,1781952644000,-534.89,0.0001863,2]
[425829648,1781952644000,-678.12,0.0001863,2]
[425829660,1781952644000,-1225.39,0.0001863,2]
[425829651,1781952644000,-500.0,0.0001863,2]
[425829650,1781952644000,-500.0,0.0001863,2]
[425829652,1781952644000,-995.8,0.0001863,2]
[425829656,1781952644000,-729.21,0.0001863,2]
[425829654,1781952644000,-724.61,0.0001863,2]
[425829653,1781952644000,-500.0,0.0001863,2]
[425829665,1781952644000,-369.50918977,0.000187,2]
[425829658,1781952644000,-1000.0,0.0001863,2]
[425829657,1781952644000,-506.58,0.0001863,2]
[425829662,1781952644000,-555.44,0.0001863,2]
[425829661,1781952644000,-500.0,0.0001863,2]
[425829663,1781952644000,-1721.56,0.0001863,2]
[425829664,1781952644000,-575.28,0.0001863,2]
[425829666,1781952644000,-180.030916,0.00018713,2]
[425829667,1781952644000,-1013.11,0.000188,2]
[425829669,1781952644000,-1014.09672,0.00018806,2]
[425829655,1781952644000,-500.0,0.0001863,2]
[425829670,1781952644000,-1868.19344,0.00018806,2]
[425829725,1781952645000,-614.52,0.00018904,2]
[425829714,1781952645000,-512.05,0.00018904,2]
[425829722,1781952645000,-500.0,0.00018904,2]
[425829709,1781952645000,-683.7,0.00018904,2]
[425829715,1781952645000,-732.5,0.00018904,2]
[425829718,1781952645000,-3576.91254535,0.00018904,2]
[425829721,1781952645000,-500.0,0.00018904,2]
[425829719,1781952645000,-1561.04830888,0.00018904,2]
[425829717,1781952645000,-1450.30892133,0.00018904,2]
[425829716,1781952645000,-2169.36,0.00018904,2]
[425829708,1781952645000,-500.0,0.00018904,2]
[425829720,1781952645000,-6145.35022444,0.00018904,2]
[425829707,1781952645000,-1230.34,0.00018904,2]
[425829699,1781952645000,-206.7080645,0.00018878,2]
[425829706,1781952645000,-1018.83,0.00018904,2]
[425829711,1781952645000,-500.0,0.00018904,2]
[425829704,1781952645000,-500.0,0.00018904,2]
[425829705,1781952645000,-500.0,0.00018904,2]
[425829703,1781952645000,-487.70098756,0.00018904,2]
[425829701,1781952645000,-179.59741175,0.00018878,2]
[425829702,1781952645000,-407.33852878,0.00018904,2]
[425829712,1781952645000,-1631.12,0.00018904,2]
[425829713,1781952645000,-500.0,0.00018904,2]
[425829697,1781952645000,-180.9209894,0.00018878,2]
[425829700,1781952645000,-166.05121143,0.00018878,2]
[425829698,1781952645000,-167.55452155,0.00018878,2]
[425829723,1781952645000,-1956.19,0.00018904,2]
[425829710,1781952645000,-312.47308767,0.00018904,2]
[425829724,1781952645000,-500.0,0.00018904,2]
[425829696,1781952645000,-193.97174599,0.00018878,2]
[425829727,1781952645000,-1242.33,0.00018904,2]
[425829756,1781952645000,-628.1247688,0.00019,2]
[425829755,1781952645000,-702.63513667,0.00019,2]
[425829753,1781952645000,-164.08042511,0.00018999,20]
[425829754,1781952645000,-17601.59357276,0.00019,2]
[425829749,1781952645000,-1000.0,0.00018919,2]
[425829748,1781952645000,-1267.47,0.00018904,2]
[425829746,1781952645000,-1721.56,0.00018904,2]
[425829747,1781952645000,-575.28,0.00018904,2]
[425829752,1781952645000,-893.97722773,0.00018996,2]
[425829751,1781952645000,-165.84676647,0.00018955,2]
[425829744,1781952645000,-500.0,0.00018904,2]
[425829745,1781952645000,-555.44,0.00018904,2]
[425829743,1781952645000,-1225.39,0.00018904,2]
[425829740,1781952645000,-506.58,0.00018904,2]
[425829750,1781952645000,-244.0,0.00018919,2]
[425829742,1781952645000,-534.89,0.00018904,2]
[425829726,1781952645000,-500.0,0.00018904,2]
[425829738,1781952645000,-500.0,0.00018904,2]
[425829729,1781952645000,-647.85844765,0.00018904,2]
[425829731,1781952645000,-678.12,0.00018904,2]
[425829739,1781952645000,-729.21,0.00018904,2]
[425829733,1781952645000,-500.0,0.00018904,2]
[425829728,1781952645000,-758.33,0.00018904,2]
[425829734,1781952645000,-500.0,0.00018904,2]
[425829730,1781952645000,-452.04155235,0.00018904,2]
[425829735,1781952645000,-995.8,0.00018904,2]
[425829736,1781952645000,-500.0,0.00018904,2]
[425829741,1781952645000,-1000.0,0.00018904,2]
[425829732,1781952645000,-1177.66,0.00018904,2]
[425829737,1781952645000,-724.61,0.00018904,2]
[425829764,1781952646000,-1000.0,0.000185,2]
[425829758,1781952646000,-1000.0,0.00017,2]
[425829757,1781952646000,-1000.0,0.000165,2]
[425829760,1781952646000,-1000.0,0.000175,2]
[425829762,1781952646000,-1000.0,0.00018,2]
[425829766,1781952646000,-65898.96053946,0.00019,2]
[425829768,1781952646000,-379.01511469,0.00019,2]
[425829769,1781952646000,-6967.4,0.00019,2]
[425829767,1781952646000,-13270.57507934,0.00019,2]
[425829770,1781952646000,-5684.42941324,0.00019,2]
[425829771,1781952646000,-29107.67765022,0.00019,2]
[425829765,1781952646000,-1097.97819506,0.00018545,2]
[425829785,1781953061000,9275.59723782,0.0001,2]
[425829885,1781953838000,-500.0,0.00012298,2]
[425829881,1781953838000,-158.17897251,0.00012298,2]
[425829879,1781953838000,-1380.06644546,0.00012199,2]
[425829883,1781953838000,-500.0,0.00012298,2]
[425829886,1781953838000,-500.0,0.00012298,2]
[425829888,1781953838000,-500.0,0.00012298,2]
[425829890,1781953838000,-292.76814651,0.00012298,2]
[425829892,1781953838000,-500.0,0.00012298,2]
[425829894,1781953838000,-500.0,0.00012298,2]
[425829898,1781953838000,-500.0,0.00012298,2]
[425829896,1781953838000,-500.0,0.00012298,2]
[425829908,1781953838000,-401.50877597,0.00012298,2]
[425829910,1781953838000,-48297.54863578,0.00012299,2]
[425829909,1781953838000,-500.0,0.00012298,2]
[425829913,1781953838000,-14346.30443613,0.00012299,2]
[425829901,1781953838000,-500.0,0.00012298,2]
[425829903,1781953838000,-98.49122403,0.00012298,2]
[425829899,1781953838000,-500.0,0.00012298,2]
[425829911,1781953838000,-1387.56261895,0.00012299,2]
[425830174,1781953840000,-5131.1872877,0.00012299,2]
[425830455,1781953843000,-4133.93835324,0.00012299,2]
[425830453,1781953843000,-3278.99187919,0.00012299,2]
[425830448,1781953843000,-1381.08291742,0.00012299,2]
[425830738,1781953846000,-57204.81674744,0.00012299,2]
[425830997,1781954569000,221.62,0.00023229,120]
[425831020,1781955032000,-381.30619838,0.00010685,2]
[425831021,1781955032000,-482.84390297,0.00010685,2]
[425831023,1781955032000,-1804.96170649,0.00010793,2]
[425831024,1781955032000,-1073.5748027,0.00010793,2]
[425831022,1781955032000,-1341.81652218,0.00010685,2]
[425831073,1781955038000,-583.19771991,0.00010793,2]
[425831072,1781955038000,-820.992352,0.00010793,2]
[425831565,1781955053000,-199.19646072,0.00011898,2]
[425831563,1781955053000,-904.0544808,0.00011471,2]
[425831564,1781955053000,-500.0,0.00011898,2]
[425831566,1781955053000,-14185.64732628,0.00011899,2]
[425831562,1781955053000,-86.1017322,0.00011446,2]
[425831561,1781955053000,-566.63,0.00011446,2]
[425831560,1781955053000,-100.45052228,0.00010793,2]
[425831567,1781955070000,-7162.09353846,0.00011899,2]
[425831575,1781956232000,-459.58721935,0.00011362,2]
[425831592,1781956238000,-920.16077706,0.0001169,2]
[425831590,1781956238000,-500.0,0.0001169,2]
[425831589,1781956238000,-920.16077706,0.0001169,2]
[425831588,1781956238000,-500.0,0.0001169,2]
[425831596,1781956238000,-920.16077706,0.0001169,2]
[425831594,1781956238000,-920.16077706,0.0001169,2]
[425831597,1781956238000,-920.16077706,0.0001169,2]
[425831587,1781956238000,-920.16077706,0.0001169,2]
[425831583,1781956238000,-500.0,0.0001169,2]
[425831584,1781956238000,-920.16077706,0.0001169,2]
[425831585,1781956238000,-500.0,0.0001169,2]
[425831586,1781956238000,-920.16077706,0.0001169,2]
[425831580,1781956238000,-228.77894113,0.0001169,2]
[425831579,1781956238000,-500.0,0.0001169,2]
[425831582,1781956238000,-920.16077706,0.0001169,2]
[425831581,1781956238000,-920.16077706,0.0001169,2]
[425831578,1781956238000,-265.92097658,0.00011362,2]
[425831593,1781956238000,-498.12960613,0.0001169,2]
[425831595,1781956238000,-920.16077706,0.0001169,2]
[425831591,1781956238000,-920.16077706,0.0001169,2]
[425831600,1781956238000,-920.16077706,0.0001169,2]
[425831615,1781956238000,-920.16077706,0.0001169,2]
[425831617,1781956238000,-920.16077706,0.0001169,2]
[425831598,1781956238000,-920.16077706,0.0001169,2]
[425831614,1781956238000,-920.16077706,0.0001169,2]
[425831613,1781956238000,-920.16077706,0.0001169,2]
[425831611,1781956238000,-920.16077706,0.0001169,2]
[425831612,1781956238000,-920.16077706,0.0001169,2]
[425831609,1781956238000,-920.16077706,0.0001169,2]
[425831610,1781956238000,-920.16077706,0.0001169,2]
[425831616,1781956238000,-920.16077706,0.0001169,2]
[425831604,1781956238000,-920.16077706,0.0001169,2]
[425831603,1781956238000,-920.16077706,0.0001169,2]
[425831608,1781956238000,-920.16077706,0.0001169,2]
[425831606,1781956238000,-920.16077706,0.0001169,2]
[425831607,1781956238000,-920.16077706,0.0001169,2]
[425831601,1781956238000,-920.16077706,0.0001169,2]
[425831602,1781956238000,-920.16077706,0.0001169,2]
[425831599,1781956238000,-920.16077706,0.0001169,2]
[425831605,1781956238000,-920.16077706,0.0001169,2]
[425831632,1781956239000,-920.16077706,0.0001169,2]
[425831629,1781956239000,-920.16077706,0.0001169,2]
[425831628,1781956239000,-920.16077706,0.0001169,2]
[425831625,1781956239000,-920.16077706,0.0001169,2]
[425831626,1781956239000,-920.16077706,0.0001169,2]
[425831627,1781956239000,-920.16077706,0.0001169,2]
[425831622,1781956239000,-920.16077706,0.0001169,2]
[425831624,1781956239000,-920.16077706,0.0001169,2]
[425831621,1781956239000,-920.16077706,0.0001169,2]
[425831620,1781956239000,-920.16077706,0.0001169,2]
[425831619,1781956239000,-920.16077706,0.0001169,2]
[425831631,1781956239000,-920.16077706,0.0001169,2]
[425831623,1781956239000,-920.16077706,0.0001169,2]
[425831630,1781956239000,-920.16077706,0.0001169,2]
[425831618,1781956239000,-920.16077706,0.0001169,2]
[425831634,1781956239000,-920.16077706,0.0001169,2]
[425831648,1781956239000,-38322.73930211,0.00011694,2]
[425831646,1781956239000,-920.16077706,0.0001169,2]
[425831644,1781956239000,-920.16077706,0.0001169,2]
[425831645,1781956239000,-920.16077706,0.0001169,2]
[425831640,1781956239000,-920.16077706,0.0001169,2]
[425831641,1781956239000,-920.16077706,0.0001169,2]
[425831647,1781956239000,-920.16077706,0.0001169,2]
[425831642,1781956239000,-920.16077706,0.0001169,2]
[425831643,1781956239000,-920.16077706,0.0001169,2]
[425831636,1781956239000,-920.16077706,0.0001169,2]
[425831635,1781956239000,-920.16077706,0.0001169,2]
[425831633,1781956239000,-920.16077706,0.0001169,2]
[425831639,1781956239000,-920.16077706,0.0001169,2]
[425831637,1781956239000,-920.16077706,0.0001169,2]
[425831638,1781956239000,-920.16077706,0.0001169,2]
[425831773,1781956243000,-267.77939956,0.00011694,2]
[425832176,1781956246000,-5624.8806936,0.00011694,2]
[425832317,1781956465000,438.06,0.00023222,120]